bitfinex/quotes_ETHUSD_20260310
["timestamp","ask_amount","ask_price","bid_price","bid_amount"]
[1773159294071,0.64392539,2073.5,2073.0,0.001]
[1773159296337,0.002,2073.6,2073.0,0.68421401]
[1773159298612,0.002,2073.6,2073.2,0.68321401]
[1773159298803,0.002,2073.6,2073.3,0.68321401]
[1773159299002,0.002,2073.8,2073.3,0.68321401]
[1773159300529,0.002,2073.8,2073.4,1.88896302]
[1773159300746,0.64592539,2073.8,2073.2,3.02003229]
[1773159301803,0.64592539,2073.8,2073.2,2.33685766]
[1773159302106,0.64592539,2073.8,2073.5,0.001]
[1773159302524,1.84949996,2073.7,2073.5,0.001]
[1773159302727,0.002,2073.6,2073.5,0.001]
[1773159303522,0.64592539,2073.6,2073.5,0.001]
[1773159303746,0.002,2073.6,2073.5,0.001]
[1773159304452,0.002,2073.6,2073.3,0.001]
[1773159304453,0.64592539,2073.6,2073.3,0.001]
[1773159304657,0.64392539,2073.4,2073.0,0.001]
[1773159304863,0.64592539,2073.6,2073.0,0.68521401]
[1773159305021,0.002,2073.6,2073.0,0.68521401]
[1773159305330,1.20763275,2073.6,2073.0,0.68521401]
[1773159305648,0.002,2073.6,2073.0,0.68521401]
[1773159306046,0.002,2073.6,2073.1,0.73145094]
[1773159306957,0.002,2073.6,2073.2,1.20586532]
[1773159307751,0.002,2073.6,2073.3,0.68421401]
[1773159308118,0.002,2073.6,2073.4,0.04822996]
[1773159308324,0.002,2073.6,2073.4,0.73144397]
[1773159308534,0.002,2073.8,2073.4,0.73144397]
[1773159308950,0.002,2073.8,2073.5,1.20569086]
[1773159309158,0.002,2073.8,2073.5,1.25391849]
[1773159309775,0.002,2073.8,2073.5,1.9371325]
[1773159309924,0.002,2073.8,2073.5,1.88890487]
[1773159310544,0.002,2074.1,2073.6,0.68321401]
[1773159310992,0.002,2074.1,2073.7,1.20557457]
[1773159311196,1.20711438,2074.5,2073.8,0.68321401]
[1773159311673,0.002,2074.5,2073.9,0.68321401]
[1773159313384,0.002,2074.5,2074.0,1.8886142]
[1773159313568,0.64592539,2074.5,2073.8,2.33647456]
[1773159313945,0.002,2074.5,2073.9,0.68321401]
[1773159315079,0.64592539,2074.5,2073.9,0.68321401]
[1773159315275,1.84909314,2074.4,2073.9,1.2054071]
[1773159315780,1.20715571,2074.5,2073.9,1.88862111]
[1773159315978,0.002,2074.3,2073.9,1.88862111]
[1773159318288,0.002,2074.3,2074.0,0.68321401]
[1773159318452,0.002,2074.5,2074.0,0.68321401]
[1773159319690,0.002,2074.5,2074.0,1.88860767]
[1773159319987,0.67770347,2074.5,2074.0,1.88860767]
[1773159320355,0.67770347,2074.5,2074.0,1.93682367]
[1773159320582,0.002,2074.5,2074.0,1.93682367]
[1773159321866,0.002,2074.5,2074.0,1.88860767]
[1773159322291,0.002,2074.5,2074.1,0.04821368]
[1773159322794,0.67770347,2074.5,2073.8,2.33650792]
[1773159323287,0.002,2074.5,2073.9,0.71033822]
[1773159323962,0.002,2074.5,2074.1,0.66211989]
[1773159324164,0.002,2074.5,2074.2,0.04821135]
[1773159324785,0.002,2074.5,2074.1,0.66211989]
[1773159325191,0.002,2074.8,2074.2,0.71033124]
[1773159325516,1.8826438,2074.8,2074.2,0.66211989]
[1773159325887,1.8826438,2074.8,2074.4,0.66211989]
[1773159325888,0.002,2074.8,2074.4,0.66211989]
[1773159326122,1.88255623,2075.0,2074.4,0.66211989]
[1773159326333,0.002,2075.0,2074.4,0.66211989]
[1773159326493,0.002,2075.2,2074.5,0.66211989]
[1773159326819,0.002,2075.2,2074.3,2.38743488]
[1773159326820,0.002,2075.4,2074.4,0.66211989]
[1773159326989,0.002,2075.4,2074.6,0.66211989]
[1773159328091,0.67770347,2075.4,2074.8,0.66211989]
[1773159328319,0.002,2075.4,2074.9,0.66211989]
[1773159329088,0.002,2075.5,2074.9,0.66211989]
[1773159329321,0.34535624,2075.9,2075.0,0.66211989]
[1773159329527,1.5496601,2075.9,2075.0,0.66211989]
[1773159329702,1.20430386,2075.9,2075.0,0.66211989]
[1773159329902,0.67570347,2075.8,2075.0,0.66211989]
[1773159330107,1.88011213,2075.8,2075.1,1.8668811]
[1773159330304,4.81718772,2076.1,2075.2,0.66211989]
[1773159330305,1.20427076,2076.0,2075.2,0.66211989]
[1773159330508,1.87992846,2076.1,2075.2,0.66211989]
[1773159330704,1.87992846,2076.1,2075.2,0.63041257]
[1773159331533,1.87992846,2076.1,2075.4,0.66211989]
[1773159332210,1.87992846,2076.1,2075.5,1.20452902]
[1773159333922,2.54104932,2075.9,2074.4,0.66211989]
[1773159334254,2.54104932,2075.9,2074.1,7.56656623]
[1773159334255,0.67570347,2075.6,2074.6,1.20505157]
[1773159334619,0.67570347,2075.6,2074.5,3.00121681]
[1773159335238,0.67570347,2075.5,2074.6,0.71032195]
[1773159335878,0.67570347,2075.4,2074.5,1.134]
[1773159336392,0.67570347,2075.2,2074.5,1.134]
[1773159336538,0.67570347,2075.2,2074.2,1.20524543]
[1773159337078,0.67570347,2075.1,2074.1,1.20630449]
[1773159337276,0.67570347,2075.1,2074.1,1.20632748]
[1773159337580,0.67570347,2075.1,2074.1,0.001]
[1773159338342,0.67570347,2074.9,2074.1,1.25453955]
[1773159338536,0.67570347,2074.9,2074.1,1.20632587]
[1773159338755,0.67570347,2074.9,2074.1,0.001]
[1773159339732,0.67570347,2074.9,2074.1,1.20632245]
[1773159339945,0.67570347,2074.9,2074.2,0.04821135]
[1773159340254,0.67570347,2074.9,2074.1,0.04921368]
[1773159340739,0.67570347,2074.7,2074.1,1.25454575]
[1773159340941,0.67570347,2074.7,2074.1,0.04921368]
[1773159341960,0.67570347,2074.7,2074.1,1.25455402]
[1773159342258,0.67570347,2074.7,2074.3,0.001]
[1773159343253,1.20505157,2074.6,2074.3,0.001]
[1773159344169,0.67570347,2074.5,2073.8,0.001]
[1773159344456,0.67570347,2074.5,2073.8,0.05221368]
[1773159344623,1.88075504,2074.6,2073.9,0.66211989]
[1773159344824,1.88075504,2074.6,2073.9,0.71033822]
[1773159345026,1.88075504,2074.6,2073.9,0.66211989]
[1773159345439,1.88075504,2074.6,2074.0,1.20540019]
[1773159345640,1.88075504,2074.6,2074.0,1.86752008]
[1773159346272,1.92888889,2074.8,2074.1,0.05121368]
[1773159346568,0.67570347,2075.4,2074.3,0.66211989]
[1773159346739,0.67570347,2075.4,2074.5,0.66211989]
[1773159346937,0.67570347,2075.4,2074.6,0.69526726]
[1773159347530,1.88032681,2075.4,2074.7,1.85205869]
[1773159347732,1.88032681,2075.4,2074.7,1.90327237]
[1773159347930,1.88030456,2075.4,2074.7,1.90327237]
[1773159348357,0.63567736,2075.3,2074.7,1.90327237]
[1773159348541,1.20460109,2075.4,2074.8,0.6470652]
[1773159348542,1.20458724,2075.4,2074.8,0.6470652]
[1773159349130,1.8402646,2075.4,2074.9,0.05121368]
[1773159349680,1.8402646,2075.4,2074.8,1.85195116]
[1773159349838,1.8402646,2075.4,2074.9,0.05121368]
[1773159350872,1.20456046,2075.5,2074.9,0.72137141]
[1773159351032,1.83979793,2075.6,2074.9,0.72137141]
[1773159351469,1.20450726,2075.6,2074.9,0.72137141]
[1773159351653,1.20458706,2075.4,2074.9,1.25606243]
[1773159352248,1.20458706,2075.4,2074.9,0.05121368]
[1773159352478,1.20458706,2075.4,2074.9,1.25608965]
[1773159352654,0.63529067,2075.3,2074.9,0.05121368]
[1773159352844,0.63529067,2075.3,2074.9,1.25608468]
[1773159353268,0.63529067,2075.3,2074.9,0.05121368]
[1773159353578,0.63529067,2075.3,2074.9,1.25608797]
[1773159353776,1.83986664,2075.5,2074.9,1.25608797]
[1773159355086,1.83986664,2075.5,2074.9,1.25708797]
[1773159355257,0.002,2075.4,2074.9,1.25708797]
[1773159356191,0.002,2075.4,2075.0,0.67015773]
[1773159356496,0.63529067,2076.3,2075.2,0.67015773]
[1773159356797,1.83921837,2076.6,2075.3,0.67015773]
[1773159357092,0.63529067,2076.3,2075.3,0.67015773]
[1773159357290,0.63529067,2076.3,2075.4,0.05121368]
[1773159357893,0.63529067,2076.1,2075.4,0.05121368]
[1773159358096,0.63529067,2076.1,2075.4,1.25579316]
[1773159358305,0.63529067,2076.1,2075.4,1.92595089]
[1773159358512,0.63529067,2076.1,2075.4,0.72137141]
[1773159358662,0.63529067,2076.1,2075.4,1.92595552]
[1773159358855,0.63529067,2076.1,2075.5,0.67015773]
[1773159359064,0.63529067,2076.1,2075.4,1.25579779]
[1773159359384,0.63529067,2076.1,2075.5,0.67015773]
[1773159359877,1.20423892,2076.0,2075.6,0.05121368]
[1773159360286,1.83952959,2076.0,2075.6,0.05121368]
[1773159360655,0.63529067,2076.2,2075.6,0.72137141]
[1773159360856,1.20603618,2076.4,2075.6,0.72137141]
[1773159361362,0.002,2076.4,2075.7,0.67015773]
[1773159361854,0.002,2076.4,2075.9,0.67015773]
[1773159362255,0.63729067,2076.4,2076.0,0.05121368]
[1773159362573,0.63729067,2076.4,2075.8,0.05121368]
[1773159363481,0.63729067,2076.4,2075.8,0.72137141]
[1773159363791,0.002,2076.4,2075.8,0.72137141]
[1773159364492,0.002,2076.4,2075.9,1.20429693]
[1773159365588,0.002,2076.4,2075.8,1.92568138]
[1773159365890,0.63529067,2076.2,2075.6,1.133]
[1773159366294,1.20418091,2076.1,2075.6,1.133]
[1773159366495,0.63529067,2076.0,2075.6,1.133]
[1773159366693,0.63529067,2076.0,2075.1,3.00787878]
[1773159367197,0.63529067,2076.0,2075.2,0.67015773]
[1773159367697,0.63529067,2076.0,2075.8,0.001]
[1773159368374,1.20429693,2075.9,2075.8,0.001]
[1773159368764,1.8395876,2075.9,2075.8,0.001]
[1773159368974,0.63529067,2075.8,2075.5,0.001]
[1773159369990,1.20429693,2075.9,2075.5,0.001]
[1773159370295,1.20418091,2076.1,2075.5,0.67115773]
[1773159370496,1.20418091,2076.1,2075.5,0.001]
[1773159370497,1.83947158,2076.1,2075.5,0.001]
[1773159370695,0.63529067,2076.0,2075.5,0.001]
[1773159371099,0.63529067,2076.0,2075.5,1.20551486]
[1773159371291,1.20418091,2076.1,2075.5,1.25369602]
[1773159371494,1.20418091,2076.1,2075.5,1.92385375]
[1773159372602,0.002,2076.2,2075.6,0.67015773]
[1773159372776,0.63729067,2076.2,2075.7,0.04817651]
[1773159373103,0.63729067,2076.2,2075.5,0.001]
[1773159374603,0.63529067,2076.0,2075.5,0.001]
[1773159374775,0.63529067,2076.0,2075.3,0.001]
[1773159375414,0.63529067,2075.9,2075.3,0.001]
[1773159376202,0.63529067,2075.7,2075.3,0.001]
[1773159376574,1.83976166,2075.6,2075.3,0.001]
[1773159377397,0.63529067,2075.5,2075.3,0.001]
[1773159377595,1.20443454,2075.7,2075.3,0.001]
[1773159377797,1.83969094,2075.8,2075.3,0.001]
[1773159378207,0.63529067,2075.7,2075.3,0.001]
[1773159378610,1.20447099,2075.6,2075.3,0.001]
[1773159378783,1.20446032,2075.7,2075.3,0.001]
[1773159378985,0.63529067,2075.6,2075.3,0.001]
[1773159379188,0.63529067,2075.6,2074.9,0.001]
[1773159379596,1.20446032,2075.7,2075.0,0.63810567]
[1773159379795,1.20446032,2075.7,2075.0,0.68629844]
[1773159379998,0.61839494,2075.6,2074.9,0.001]
[1773159380207,0.61839494,2075.6,2074.9,1.84398175]
[1773159380601,1.20452902,2075.5,2075.0,0.63810567]
[1773159381199,1.20452902,2075.5,2075.3,0.001]
[1773159385711,0.62039494,2076.2,2075.3,0.63910567]
[1773159385923,0.62039494,2076.2,2075.4,0.63810567]
[1773159385924,0.002,2076.2,2075.4,0.63810567]
[1773159386523,1.20601269,2076.4,2075.5,0.63810567]
[1773159386725,1.23010425,2076.4,2075.5,0.63810567]
[1773159386927,1.23010425,2076.4,2075.7,0.63810567]
[1773159387131,1.23010731,2076.4,2075.7,0.63810567]
[1773159387498,0.02609156,2076.4,2075.7,0.63810567]
[1773159388206,0.002,2076.4,2075.7,0.63810567]
[1773159389223,0.002,2076.4,2075.9,0.63810567]
[1773159390132,0.002,2076.4,2075.9,1.128]
[1773159390429,0.002,2076.7,2076.1,0.63810567]
[1773159390623,0.02609156,2076.7,2076.1,0.63810567]
[1773159390921,1.82192811,2077.3,2076.4,0.63810567]
[1773159391126,1.82192811,2077.3,2076.5,1.84205462]
[1773159391325,1.82192811,2077.3,2076.6,0.63810567]
[1773159391701,0.02409156,2077.2,2076.6,0.63810567]
[1773159393129,1.20360117,2077.1,2076.6,0.63810567]
[1773159393311,1.22769273,2077.1,2076.6,0.63810567]
[1773159393711,0.002,2076.7,2076.5,1.84202815]
[1773159394026,0.34632519,2077.4,2076.7,0.63810567]
[1773159394226,1.54976288,2077.4,2076.7,0.63810567]
[1773159394429,4.81349616,2077.5,2076.7,0.63810567]
[1773159394430,1.20340371,2077.5,2076.7,0.63810567]
[1773159394600,1.20332539,2077.6,2076.7,0.63810567]
[1773159394797,1.20329669,2077.7,2076.7,0.63810567]
[1773159395409,1.20329669,2077.7,2076.9,0.63810567]
[1773159396200,0.61839494,2077.8,2076.9,0.63810567]
[1773159396420,1.20313068,2078.0,2076.9,0.63810567]
[1773159397320,1.20313068,2078.0,2077.1,0.63810567]
[1773159397629,1.20313068,2078.0,2077.3,0.63810567]
[1773159398230,1.82146254,2078.1,2077.3,0.63810567]
[1773159398600,4.81193354,2078.2,2077.3,0.63810567]
[1773159398601,1.2029641,2078.2,2077.3,0.63810567]
[1773159398834,1.20294115,2078.3,2077.3,0.63810567]
[1773159399009,4.81134492,2078.5,2077.3,0.63810567]
[1773159399331,0.61839494,2078.4,2077.3,0.63810567]
[1773159400426,0.61839494,2078.2,2077.2,1.76610567]
[1773159401007,1.20290622,2078.3,2077.2,1.128]
[1773159401008,0.61839494,2078.0,2077.2,1.128]
[1773159401325,0.61839494,2077.8,2076.7,2.96892463]
[1773159401525,0.61839494,2077.8,2076.8,0.63810567]
[1773159402437,0.61839494,2077.8,2076.9,1.84182274]
[1773159402438,1.20325359,2077.7,2076.9,1.84182274]
[1773159402807,1.20307988,2078.0,2077.0,0.63810567]
[1773159403428,0.61839494,2077.9,2077.0,0.63810567]
[1773159404414,1.20319568,2077.8,2077.1,0.04814404]
[1773159404615,1.20319568,2077.8,2077.1,1.25174216]
[1773159404816,1.20319568,2077.8,2077.1,1.88984783]
[1773159405017,0.61839494,2077.5,2076.4,0.63810567]
[1773159405237,0.04814404,2077.4,2076.5,0.63810567]
[1773159405410,0.04814404,2077.4,2076.4,4.81592115]
[1773159405411,0.04814404,2077.4,2076.7,0.63810567]
[1773159405610,0.04814404,2077.4,2076.8,0.02669509]
[1773159405834,0.66653898,2077.4,2076.7,0.63810567]
[1773159406039,0.66653898,2077.4,2076.8,0.001]
[1773159406413,2.56825086,2077.6,2077.0,0.63810567]
[1773159406414,0.04814404,2077.6,2077.0,0.63810567]
[1773159406845,0.002,2077.7,2077.0,0.63810567]
[1773159407027,0.05014404,2077.7,2077.0,0.63810567]
[1773159407208,0.04814404,2077.8,2077.2,0.70837567]
[1773159407426,0.002,2077.9,2077.3,0.73675467]
[1773159407762,0.002,2077.9,2077.3,0.75433197]
[1773159409418,0.002,2077.9,2077.4,1.84841437]
[1773159409625,0.002,2077.9,2077.5,0.04595187]
[1773159410851,0.002,2077.9,2077.4,1.84841437]
[1773159411628,0.002,2078.2,2077.5,0.69152794]
[1773159411810,1.20496435,2078.2,2077.5,0.64498701]
[1773159412015,0.002,2078.2,2077.5,0.64498701]
[1773159412315,1.20500449,2078.2,2077.6,0.04813246]
[1773159412535,1.20496547,2078.2,2077.7,1.126]
[1773159412733,0.002,2078.2,2077.7,1.77098701]
[1773159413633,0.002,2078.2,2077.8,1.20319568]
[1773159417818,0.002,2078.2,2077.7,2.97419339]
[1773159418032,0.69055469,2078.2,2077.7,1.126]
[1773159418219,1.89157668,2078.1,2077.7,1.126]
[1773159418417,0.002,2078.2,2077.8,0.64498701]
[1773159418717,0.002,2078.2,2077.8,0.69311483]
[1773159419129,0.68855469,2078.1,2077.4,2.97438871]
[1773159419351,0.002,2078.2,2077.5,0.64498701]
[1773159419721,1.20496815,2078.2,2077.5,0.64498701]
[1773159419924,1.89352284,2078.2,2077.5,0.64498701]
[1773159420128,0.68855469,2078.1,2077.5,0.64598701]
[1773159420361,0.002,2078.0,2077.6,1.20331151]
[1773159420861,1.20269229,2078.7,2077.7,0.64498701]
[1773159421032,0.002,2078.5,2077.7,0.64498701]
[1773159421359,5.14076384,2079.2,2078.0,0.64498701]
[1773159421360,1.20248902,2079.1,2078.0,0.64498701]
[1773159421546,5.49819608,2079.2,2078.2,0.64498701]
[1773159421547,1.8909859,2079.2,2078.2,0.64498701]
[1773159421760,0.68855469,2079.1,2078.2,0.64498701]
[1773159422077,0.68855469,2079.1,2078.1,1.126]
[1773159422381,0.68855469,2079.3,2078.4,0.64498701]
[1773159422723,1.20226988,2079.4,2078.4,0.64498701]
[1773159423334,1.20225302,2079.5,2078.4,0.64498701]
[1773159423556,1.8907422,2079.6,2078.4,0.64498701]
[1773159423723,4.808497,2079.7,2078.4,0.64498701]
[1773159423724,1.20214861,2079.7,2078.4,0.64498701]
[1773159424351,1.20214861,2079.7,2078.6,0.64498701]
[1773159424554,0.68855469,2079.6,2078.6,0.64498701]
[1773159424760,0.68855469,2079.6,2078.7,1.126]
[1773159425061,0.68855469,2079.6,2078.8,0.64498701]
[1773159426342,1.89074884,2079.6,2078.9,1.20255904]
[1773159426933,0.68855469,2080.3,2079.0,0.64498701]
[1773159428262,0.68855469,2080.3,2078.9,1.20255904]
[1773159428263,0.68855469,2080.2,2078.9,1.20255904]
[1773159428564,0.68855469,2079.8,2078.7,2.32863028]
[1773159428747,0.68855469,2079.6,2078.7,1.126]
[1773159429363,0.68855469,2079.3,2078.2,1.126]
[1773159430362,0.68855469,2079.3,2078.3,1.20290622]
[1773159430363,0.68855469,2079.1,2078.3,1.20290622]
[1773159430734,0.68855469,2079.1,2078.3,1.84789323]
[1773159431035,0.68855469,2079.1,2078.2,2.32892383]
[1773159431460,0.68855469,2079.1,2078.3,0.04811624]
[1773159431857,0.68855469,2079.1,2078.2,2.97391084]
[1773159432045,0.68855469,2079.1,2078.3,0.69310325]
[1773159432447,1.89099997,2079.1,2078.4,1.84783535]
[1773159432651,1.89099997,2079.1,2078.5,0.04811161]
[1773159432846,0.68855469,2079.4,2078.5,0.69309862]
[1773159433051,1.20236204,2079.3,2078.5,0.69309862]
[1773159433376,0.002,2079.2,2078.5,0.69309862]
[1773159433673,0.002,2079.2,2078.5,0.64498701]
[1773159434439,0.002,2079.2,2078.6,1.84771961]
[1773159434838,0.68855469,2079.8,2078.7,0.64498701]
[1773159435341,0.68855469,2079.8,2078.9,0.64498701]
[1773159435543,0.68855469,2079.8,2079.0,0.67456642]
[1773159435731,1.20196321,2080.0,2079.0,0.67456642]
[1773159436641,0.68855469,2080.0,2079.1,1.84743037]
[1773159437057,0.68855469,2080.0,2079.2,0.01248398]
[1773159437262,0.68855469,2080.0,2079.1,1.84743037]
[1773159437443,0.68855469,2080.0,2079.1,1.20244336]
[1773159437863,0.68855469,2080.0,2079.1,1.84743037]
[1773159438061,0.68855469,2080.4,2079.2,0.64498701]
[1773159438762,1.89030443,2080.3,2079.4,0.64498701]
[1773159438965,1.89030443,2080.3,2079.5,1.125]
[1773159439766,0.66209648,2080.2,2079.5,1.125]
[1773159440356,1.20174974,2080.3,2079.5,1.125]
[1773159440357,1.86355745,2080.8,2079.6,0.69723265]
[1773159440865,1.86355745,2080.8,2079.8,0.69723265]
[1773159441398,0.66209648,2081.1,2079.8,0.69723265]
[1773159441675,1.20127152,2081.2,2079.8,0.69723265]
[1773159442245,1.86322583,2081.4,2079.8,0.69723265]
[1773159442660,0.66209648,2081.1,2079.8,0.69723265]
[1773159442853,0.66209648,2081.1,2079.5,5.93338582]
[1773159442854,0.66209648,2080.8,2079.5,3.02440176]
[1773159443042,0.66209648,2080.8,2079.5,2.32716911]
[1773159443669,0.66209648,2080.8,2079.6,0.69723265]
[1773159443861,0.66209648,2080.7,2079.5,2.32716911]
[1773159444058,0.66209648,2080.7,2079.6,1.124]
[1773159444971,0.66209648,2080.5,2079.7,1.20209645]
[1773159445369,0.66209648,2080.5,2079.2,1.20238553]
[1773159445573,0.66209648,2080.5,2079.3,1.1710931]
[1773159445877,0.66209648,2080.3,2079.3,1.123]
[1773159446077,0.66209648,2080.3,2079.3,1.82023265]
[1773159446656,0.66209648,2080.3,2079.3,1.82123265]
[1773159446872,1.20180751,2080.2,2079.4,1.20226988]
[1773159447276,1.86390399,2080.2,2079.4,1.20226988]
[1773159447698,1.20378712,2080.3,2079.5,0.69723265]
[1773159447855,1.20378712,2080.3,2079.5,0.74532113]
[1773159448050,0.002,2080.3,2079.5,0.69723265]
[1773159449084,0.002,2080.3,2079.7,0.69723265]
[1773159449879,0.002,2080.3,2079.8,1.123]
[1773159450076,0.66409648,2080.3,2079.8,1.123]
[1773159450582,0.66409648,2080.3,2079.3,0.69823265]
[1773159450791,0.66409648,2080.3,2079.3,1.124]
[1773159451093,0.66209648,2079.9,2079.3,1.124]
[1773159451273,0.66209648,2079.7,2079.3,0.001]
[1773159452499,2.71308674,2079.8,2079.3,0.001]
[1773159452857,3.37518322,2079.8,2079.3,0.001]
[1773159453187,0.66209648,2079.7,2079.3,0.001]
[1773159453489,1.20215426,2079.6,2079.3,0.001]
[1773159454314,1.86425074,2079.6,2079.3,0.001]
[1773159454475,0.66209648,2079.5,2079.0,0.001]
[1773159455203,0.66209648,2079.3,2078.4,0.001]
[1773159455499,1.86448201,2079.2,2078.4,1.20384129]
[1773159455795,1.86448201,2079.2,2078.5,0.04811161]
[1773159456300,0.66209648,2079.0,2078.4,0.001]
[1773159456693,1.86448201,2079.2,2078.4,0.001]
[1773159456909,1.86448201,2079.2,2078.4,0.04911393]
[1773159457406,1.86448201,2079.2,2078.4,1.25194031]
[1773159457610,4.80912747,2079.4,2078.5,0.69723265]
[1773159457928,4.80912747,2079.4,2078.6,0.74534195]
[1773159458143,4.80912747,2079.4,2078.6,1.86534195]
[1773159459224,0.66209648,2079.3,2078.6,1.12]
[1773159459435,1.86448201,2079.2,2078.6,1.12]
[1773159459632,1.20238553,2079.2,2078.6,2.32273112]
[1773159460338,1.20238553,2079.2,2078.6,1.12]
[1773159460640,1.20238553,2079.2,2078.6,2.32372412]
[1773159461097,1.20238553,2079.2,2078.6,2.3237244]
[1773159461303,5.47129326,2079.4,2078.6,2.3237244]
[1773159462121,4.80919678,2079.4,2078.6,3.02095705]
[1773159462431,0.002,2079.6,2078.7,0.74533963]
[1773159463193,0.002,2079.6,2078.7,0.69723265]
[1773159463422,0.002,2079.6,2078.8,1.20261689]
[1773159463625,0.002,2079.6,2078.9,0.69723265]
[1773159465536,0.002,2079.6,2079.0,1.2025012]
[1773159465715,0.66409648,2079.6,2078.8,1.119]
[1773159466047,0.66209648,2079.5,2078.8,1.119]
[1773159467597,1.20415426,2079.6,2078.9,1.20255904]
[1773159468058,1.85462019,2079.6,2078.7,4.81058332]
[1773159468264,0.65046593,2079.5,2078.7,1.20267474]
[1773159469440,0.65046593,2079.5,2078.6,2.32270063]
[1773159470160,1.84067546,2079.4,2078.6,2.32272249]
[1773159470366,1.84067546,2079.4,2078.6,2.32273064]
[1773159470529,0.63840558,2079.3,2078.6,1.20373064]
[1773159470735,0.63840558,2079.3,2078.6,0.001]
[1773159472754,0.63840558,2079.1,2078.6,0.001]
[1773159475461,1.2025012,2079.0,2078.8,0.001]
[1773159476049,1.2025012,2079.0,2078.6,0.001]
[1773159476936,0.63840558,2078.9,2078.4,1.12]
[1773159477364,1.2025012,2079.0,2078.4,1.12]
[1773159477583,5.44841039,2079.1,2078.4,1.12]
[1773159477889,5.44841039,2079.1,2078.4,2.32284021]
[1773159478033,1.2023277,2079.3,2078.5,0.63684747]
[1773159479645,1.2023277,2079.3,2078.7,0.63684747]
[1773159480938,0.002,2079.6,2078.7,0.64665756]
[1773159481140,0.002,2079.6,2078.7,0.63684747]
[1773159481567,0.002,2079.6,2078.8,1.20261689]
[1773159481744,0.002,2079.6,2078.9,0.63684747]
[1773159481951,0.002,2079.6,2079.0,1.75584747]
[1773159482250,0.002,2079.6,2079.1,0.63684747]
[1773159482444,0.002,2079.6,2079.0,1.119]
[1773159482759,0.002,2079.6,2079.0,1.75584747]
[1773159482963,0.002,2079.6,2079.1,0.63684747]
[1773159483659,0.002,2079.6,2079.2,1.20238553]
[1773159483854,0.002,2079.6,2079.2,1.839233]
[1773159484673,0.002,2079.6,2079.3,0.63684747]
[1773159484878,4.80645767,2080.6,2079.3,0.63684747]
[1773159485047,1.83997033,2080.7,2079.3,0.63684747]
[1773159485674,0.63840558,2081.0,2079.5,0.63684747]
[1773159485979,1.20140323,2080.9,2079.7,0.63684747]
[1773159486165,0.63840558,2080.8,2079.7,0.63684747]
[1773159486470,0.63840558,2080.4,2079.4,1.20226988]
[1773159487072,0.63840558,2080.3,2079.3,2.32130476]
[1773159487473,0.63840558,2080.3,2079.3,1.119]
[1773159487678,0.63840558,2080.0,2079.3,1.119]
[1773159489156,0.63840558,2079.7,2078.6,0.63684747]
[1773159489472,0.63840558,2079.7,2079.2,0.001]
[1773159489667,1.20215426,2079.6,2079.2,0.001]
[1773159489874,1.84055984,2079.6,2079.2,0.001]
[1773159490061,1.20215426,2079.6,2079.2,0.001]
[1773159493370,0.63840558,2079.5,2079.2,0.001]
[1773159494282,1.20226988,2079.4,2079.2,0.001]
[1773159495587,0.63840558,2079.3,2079.0,0.001]
[1773159495980,1.20226988,2079.4,2079.0,0.001]
[1773159496179,0.63840558,2079.3,2079.0,0.001]
[1773159496374,1.84079111,2079.2,2078.7,0.001]
[1773159497188,0.63840558,2079.1,2078.7,0.001]
[1773159498290,1.2025012,2079.0,2078.7,0.001]
[1773159499798,0.65857674,2078.9,2078.7,0.001]
[1773159499999,0.65857674,2078.4,2077.3,0.001]
[1773159500310,1.20313778,2077.9,2077.5,0.004]
[1773159500506,1.2029641,2078.2,2077.5,0.004]
[1773159500893,1.2029641,2078.2,2077.5,0.68161571]
[1773159502385,4.81185641,2078.3,2077.5,0.68161571]
[1773159503307,4.81185641,2078.3,2077.5,1.88497681]
[1773159503505,1.20279047,2078.5,2077.6,0.72574817]
[1773159503801,1.20279047,2078.5,2077.6,0.67761571]
[1773159504396,1.20279047,2078.5,2077.7,0.67861571]
[1773159504591,1.2027326,2078.6,2077.9,0.67761571]
[1773159504793,0.65857674,2079.0,2077.9,0.67761571]
[1773159505001,1.20255904,2078.9,2078.1,0.67761571]
[1773159505595,1.20255904,2078.9,2078.2,0.003]
[1773159506547,1.20238553,2079.2,2078.3,1.20290622]
[1773159506688,1.20221207,2079.5,2078.4,0.68061571]
[1773159507014,0.66057674,2079.6,2078.4,0.68061571]
[1773159507015,1.20419721,2079.6,2078.4,0.72872964]
[1773159507415,1.20415748,2079.6,2078.6,0.67761571]
[1773159507787,0.002,2079.6,2078.8,0.67761571]
[1773159508601,0.002,2079.6,2079.0,0.67761571]
[1773159510307,0.002,2079.6,2079.1,0.003]
[1773159510507,0.002,2079.6,2079.3,0.67761571]
[1773159511198,0.002,2079.6,2079.3,1.87990532]
[1773159511598,0.002,2079.6,2079.4,0.003]
[1773159513844,0.002,2079.6,2079.2,1.112]
[1773159514142,0.002,2079.6,2079.2,1.115]
[1773159514914,0.002,2079.6,2079.2,2.31738138]
[1773159515117,0.002,2079.6,2079.2,1.115]
[1773159516112,0.002,2079.6,2079.2,2.31738463]
[1773159516938,0.002,2079.6,2079.2,1.115]
[1773159518050,0.002,2079.8,2079.3,0.67761571]
[1773159518240,0.002,2079.4,2079.3,0.67761571]
[1773159518429,0.002,2079.8,2079.3,0.67761571]
[1773159518625,0.002,2079.8,2079.4,0.003]
[1773159518826,0.002,2080.1,2079.4,0.67761571]
[1773159519065,0.002,2080.1,2079.6,0.67761571]
[1773159519260,0.002,2080.1,2079.8,0.67761571]
[1773159519548,0.002,2080.1,2079.9,1.113]
[1773159520736,0.002,2080.1,2080.0,0.003]
[1773159520942,0.66057674,2080.1,2079.3,1.113]
[1773159521142,0.66057674,2080.1,2079.1,1.88005907]
[1773159521143,0.65857674,2079.9,2079.1,0.003]
[1773159521342,0.65857674,2079.6,2078.5,2.99336309]
[1773159521645,0.65857674,2079.6,2078.6,0.003]
[1773159521841,0.65857674,2079.6,2078.6,0.70526577]
[1773159522058,0.65857674,2079.6,2078.6,0.68061571]
[1773159523055,3.83228141,2079.8,2078.7,0.67761571]
[1773159523453,3.83228141,2079.8,2078.8,1.8802326]
[1773159524782,1.20203865,2079.8,2078.9,0.68061571]
[1773159525574,1.20203865,2079.8,2079.0,1.2025012]
[1773159528555,1.20203865,2079.8,2079.1,0.003]
[1773159529565,1.20203865,2079.8,2079.0,1.89888276]
[1773159529765,1.20203865,2079.8,2079.1,0.003]